bitfinex/quotes_SOLUSD_20240625
["timestamp","ask_amount","ask_price","bid_price","bid_amount"]
[1719330333505,0.17,139.51,139.44,27.17]
[1719330333802,7.46465348,139.61,139.45,21.1294]
[1719330334013,7.46465348,139.61,139.5,27.17]
[1719330334825,7.46465348,139.61,139.51,45.0]
[1719330336030,115.7435,139.64,139.54,27.17]
[1719330336206,115.7435,139.64,139.55,45.0]
[1719330336413,123.20487111,139.64,139.55,45.0]
[1719330336632,123.20487111,139.64,139.55,27.17]
[1719330337298,100.0,139.62,139.55,27.17]
[1719330337504,100.0,139.62,139.54,45.0]
[1719330337732,0.34,139.61,139.53,45.0]
[1719330339734,100.0,139.6,139.53,45.0]
[1719330339937,0.17,139.59,139.53,45.0]
[1719330340102,0.34,139.59,139.53,45.0]
[1719330340307,0.34,139.59,139.51,27.17]
[1719330340538,100.0,139.58,139.51,27.17]
[1719330340706,0.17,139.57,139.51,27.17]
[1719330340911,0.34,139.57,139.51,27.17]
[1719330343613,0.17,139.56,139.51,27.17]
[1719330345731,0.17,139.56,139.52,45.0]
[1719330345909,0.17,139.56,139.47,6.0796]
[1719330346110,0.34,139.56,139.48,45.0]
[1719330348016,100.0,139.55,139.48,45.0]
[1719330348205,0.34,139.54,139.48,45.0]
[1719330348410,0.17,139.56,139.48,45.0]
[1719330348611,0.34,139.56,139.48,45.0]
[1719330349937,13.97466499,139.57,139.48,45.0]
[1719330350144,100.0,139.59,139.48,72.17]
[1719330350357,100.0,139.59,139.51,27.17]
[1719330351636,0.34,139.58,139.51,27.17]
[1719330352233,106.2619,139.61,139.52,45.0]
[1719330352618,100.0,139.59,139.52,45.0]
[1719330352922,100.0,139.59,139.51,27.17]
[1719330353353,0.17,139.58,139.51,27.17]
[1719330353518,0.34,139.58,139.51,27.17]
[1719330353918,100.0,139.57,139.51,27.17]
[1719330354120,0.34,139.56,139.45,15.3716]
[1719330354443,0.34,139.56,139.46,65.0]
[1719330355631,116.5774,139.55,139.44,33.3813]
[1719330355949,0.17,139.54,139.44,33.3813]
[1719330356147,0.34,139.54,139.44,33.3813]
[1719330356945,0.34,139.54,139.45,45.0]
[1719330357751,6.0258,139.53,139.44,33.3813]
[1719330357939,0.17,139.52,139.44,33.3813]
[1719330358147,0.34,139.52,139.44,33.3813]
[1719330358330,0.34,139.52,139.44,27.17]
[1719330359345,0.34,139.52,139.45,45.0]
[1719330360659,0.34,139.52,139.47,23.34]
[1719330361726,0.17,139.52,139.48,45.0]
[1719330361963,6.0258,139.53,139.48,45.0]
[1719330363168,0.17,139.54,139.5,23.34]
[1719330363544,16.5774,139.55,139.5,23.34]
[1719330363751,116.5774,139.55,139.5,23.34]
[1719330364441,0.17,139.54,139.5,23.34]
[1719330364769,0.17,139.54,139.42,15.4914]
[1719330364953,16.5774,139.55,139.49,23.34]
[1719330365467,116.5774,139.55,139.49,23.34]
[1719330366337,100.0,139.53,139.43,45.0]
[1719330366543,0.17,139.52,139.48,23.34]
[1719330366772,0.34,139.52,139.48,23.34]
[1719330367081,0.34,139.52,139.44,23.34]
[1719330367243,0.34,139.52,139.47,23.34]
[1719330368376,100.0,139.51,139.47,23.34]
[1719330368553,0.17,139.5,139.38,22.111]
[1719330368869,0.34,139.5,139.45,23.34]
[1719330369055,0.34,139.5,139.46,45.0]
[1719330369255,0.34,139.5,139.45,23.34]
[1719330371442,22.1591,139.49,139.45,23.34]
[1719330371650,0.17,139.48,139.39,20.17]
[1719330371849,0.17,139.48,139.43,23.34]
[1719330372050,0.17,139.48,139.44,45.0]
[1719330372260,0.34,139.48,139.43,23.34]
[1719330372464,0.34,139.48,139.44,45.0]
[1719330372665,0.34,139.48,139.38,22.111]
[1719330372966,0.34,139.48,139.41,23.34]
[1719330373752,0.34,139.48,139.42,45.0]
[1719330374665,100.0,139.46,139.37,23.34]
[1719330374972,0.17,139.45,139.37,23.34]
[1719330375169,0.34,139.45,139.37,23.34]
[1719330375748,0.34,139.45,139.36,1.4378261]
[1719330375947,0.34,139.45,139.38,23.34]
[1719330378948,100.0,139.44,139.35,0.8646533]
[1719330379155,16.2258,139.42,139.35,24.2046533]
[1719330379370,0.17,139.41,139.35,0.8646533]
[1719330379585,0.34,139.41,139.35,0.8646533]
[1719330381374,6.0106,139.43,139.37,23.34]
[1719330381859,6.0106,139.43,139.38,45.0]
[1719330382386,23.68533018,139.46,139.38,45.0]
[1719330382592,16.2258,139.46,139.4,23.34]
[1719330382873,116.2258,139.46,139.4,23.34]
[1719330383482,16.2258,139.46,139.4,23.34]
[1719330383962,116.2258,139.46,139.4,23.34]
[1719330384559,0.17,139.45,139.4,23.34]
[1719330384877,0.34,139.45,139.38,45.0]
[1719330385877,0.34,139.45,139.38,68.34]
[1719330386083,100.0,139.44,139.38,45.0]
[1719330386266,0.17,139.43,139.38,45.0]
[1719330386467,0.34,139.43,139.38,45.0]
[1719330386653,0.34,139.43,139.37,45.0]
[1719330386856,0.34,139.43,139.36,23.34]
[1719330387685,116.2258,139.46,139.39,23.34]
[1719330387870,16.2258,139.46,139.39,23.34]
[1719330388373,16.2258,139.46,139.4,45.0]
[1719330388685,16.2258,139.46,139.37,23.34]
[1719330388686,116.2258,139.46,139.37,23.34]
[1719330388865,116.2258,139.46,139.38,45.0]
[1719330389181,0.17,139.45,139.38,45.0]
[1719330389369,0.34,139.45,139.38,45.0]
[1719330397870,0.17,139.45,139.38,45.0]
[1719330398208,16.2258,139.46,139.41,23.34]
[1719330399197,0.17,139.45,139.41,23.34]
[1719330399378,16.2258,139.46,139.41,23.34]
[1719330399588,16.2258,139.46,139.42,45.0]
[1719330400694,0.17,139.45,139.41,23.34]
[1719330401578,16.2258,139.46,139.42,45.0]
[1719330402498,16.2258,139.46,139.41,23.34]
[1719330402680,0.17,139.45,139.41,23.34]
[1719330403175,16.2258,139.46,139.41,23.34]
[1719330403371,16.2258,139.46,139.42,45.0]
[1719330403771,16.2258,139.46,139.41,23.34]
[1719330403996,0.17,139.45,139.41,23.34]
[1719330404380,16.2258,139.46,139.42,45.0]
[1719330404575,6.0106,139.47,139.42,45.0]
[1719330405899,0.17,139.46,139.36,15.6251]
[1719330406070,100.0,139.45,139.38,23.34]
[1719330406266,0.17,139.44,139.38,23.34]
[1719330408271,0.17,139.44,139.39,45.0]
[1719330409577,0.17,139.44,139.38,23.34]
[1719330409784,0.17,139.44,139.33,21.9729]
[1719330410091,0.17,139.44,139.37,23.34]
[1719330410292,15.1581,139.42,139.33,15.8893]
[1719330410474,0.17,139.41,139.35,24.2046533]
[1719330410674,0.34,139.41,139.35,24.2046533]
[1719330411680,0.34,139.41,139.36,45.0]
[1719330412599,0.34,139.41,139.35,24.2046533]
[1719330413800,0.34,139.41,139.36,45.0]
[1719330415120,15.1581,139.42,139.36,45.0]
[1719330415285,15.1581,139.42,139.38,23.34]
[1719330416802,0.17,139.41,139.38,23.34]
[1719330417908,15.1581,139.42,139.38,23.34]
[1719330418483,0.17,139.43,139.38,23.34]
[1719330418792,0.34,139.44,139.39,45.0]
[1719330419201,0.17,139.44,139.39,45.0]
[1719330420502,0.34,139.44,139.39,45.0]
[1719330420888,16.12,139.45,139.39,45.0]
[1719330421093,21.6399,139.51,139.43,23.34]
[1719330421300,21.6399,139.51,139.46,23.34]
[1719330421482,100.0,139.55,139.46,23.34]
[1719330421483,122.247,139.55,139.47,45.0]
[1719330422493,100.0,139.53,139.44,23.34]
[1719330423706,0.17,139.52,139.44,23.34]
[1719330423889,0.34,139.52,139.44,23.34]
[1719330424294,7.79887923,139.52,139.44,23.34]
[1719330425006,7.62887923,139.52,139.44,23.34]
[1719330425311,100.0,139.51,139.44,23.34]
[1719330425530,0.17,139.52,139.37,15.3631]
[1719330425531,100.0,139.47,139.37,15.3631]
[1719330425689,100.0,139.47,139.34,21.4451]
[1719330425893,0.17,139.46,139.38,23.34]
[1719330426420,0.17,139.46,139.41,23.34]
[1719330427815,21.4295,139.5,139.44,23.34]
[1719330428019,267.73761553,139.5,139.44,23.34]
[1719330428397,367.73761553,139.5,139.44,23.34]
[1719330429336,0.34,139.49,139.44,23.34]
[1719330429627,0.34,139.49,139.38,23.34]
[1719330429628,100.0,139.48,139.38,23.34]
[1719330429790,0.17,139.47,139.41,23.34]
[1719330429987,0.34,139.47,139.41,23.34]
[1719330430224,0.34,139.47,139.35,0.8646533]
[1719330430395,0.34,139.47,139.4,23.34]
[1719330431594,0.34,139.47,139.35,20.8646533]
[1719330431595,100.0,139.46,139.35,20.8646533]
[1719330431922,0.17,139.45,139.39,23.34]
[1719330432099,16.3686,139.44,139.39,23.34]
[1719330432300,0.17,139.43,139.37,23.34]
[1719330432519,0.34,139.43,139.37,23.34]
[1719330433217,6.947,139.43,139.37,23.34]
[1719330433422,100.0,139.42,139.36,23.34]
[1719330433622,0.34,139.41,139.36,23.34]
[1719330435608,0.17,139.42,139.36,23.34]
[1719330437497,0.34,139.42,139.36,23.34]
[1719330438334,100.34,139.42,139.36,23.34]
[1719330439242,100.34,139.42,139.35,0.8646533]
[1719330439243,100.0,139.38,139.35,0.8646533]
[1719330439422,106.3905,139.36,139.35,0.8646533]
[1719330439622,106.7305,139.36,139.35,0.8646533]
[1719330440047,6.7305,139.36,139.35,0.8646533]
[1719330442457,106.7305,139.36,139.27,23.34]
[1719330442630,16.6234,139.35,139.27,23.34]
[1719330444350,100.0,139.34,139.27,23.34]
[1719330444555,0.17,139.33,139.27,23.34]
[1719330444726,0.34,139.33,139.27,23.34]
[1719330446754,0.34,139.33,139.22,6.0802]
[1719330447055,7.79508193,139.33,139.22,6.0802]
[1719330447652,100.0,139.32,139.25,23.34]
[1719330447848,0.17,139.31,139.25,23.34]
[1719330448032,0.34,139.31,139.25,23.34]
[1719330451250,6.6326,139.3,139.25,23.34]
[1719330451443,0.17,139.29,139.25,23.34]
[1719330451647,0.34,139.29,139.25,23.34]
[1719330453844,6.6326,139.3,139.25,23.34]
[1719330454143,7.45508193,139.33,139.25,23.34]
[1719330455228,0.34,139.32,139.25,23.34]
[1719330455446,100.0,139.31,139.25,23.34]
[1719330455629,0.34,139.3,139.25,23.34]
[1719330456333,7.45508193,139.33,139.25,23.34]
[1719330456532,7.45508193,139.33,139.28,23.34]
[1719330457035,107.45508193,139.33,139.23,23.34]
[1719330457226,107.45508193,139.33,139.26,23.34]
[1719330457429,107.45508193,139.33,139.23,23.34]
[1719330457748,0.17,139.32,139.23,23.34]
[1719330457946,100.0,139.31,139.23,23.34]
[1719330458153,0.34,139.3,139.23,23.34]
[1719330460745,100.34,139.3,139.23,23.34]
[1719330460947,0.34,139.3,139.23,23.34]
[1719330461160,7.45459349,139.31,139.23,23.34]
[1719330461450,0.17,139.3,139.23,23.34]
[1719330462459,0.17,139.3,139.21,0.8646533]
[1719330462460,100.34,139.3,139.24,23.34]
[1719330463363,16.0152,139.29,139.24,23.34]
[1719330463545,0.17,139.28,139.24,23.34]
[1719330463748,0.34,139.28,139.24,23.34]
[1719330467962,0.34,139.28,139.22,23.34]
[1719330469451,7.78565166,139.28,139.22,23.34]
[1719330470264,107.78565166,139.28,139.22,23.34]
[1719330470662,7.44565166,139.28,139.22,23.34]
[1719330470964,15.4381,139.33,139.25,23.34]
[1719330471264,7.44342708,139.31,139.25,23.34]
[1719330472240,0.17,139.3,139.25,23.34]
[1719330472746,0.34,139.3,139.25,23.34]
[1719330472951,100.34,139.3,139.25,23.34]
[1719330473261,100.34,139.3,139.21,0.8646533]
[1719330473466,100.34,139.3,139.24,23.34]
[1719330477666,100.34,139.3,139.21,0.8646533]
[1719330477870,100.34,139.3,139.24,23.34]
[1719330478574,100.34,139.3,139.21,0.8646533]
[1719330478750,100.34,139.3,139.23,23.34]
[1719330480654,100.34,139.3,139.21,5.64528792]
[1719330481153,100.34,139.3,139.23,23.34]
[1719330481469,7.4447968,139.29,139.23,23.34]
[1719330481782,0.17,139.28,139.23,23.34]
[1719330482144,100.0,139.32,139.26,23.34]
[1719330482687,107.44472776,139.32,139.31,7.8]
[1719330484358,107.61472776,139.32,139.31,7.8]
[1719330484561,107.61472776,139.32,139.21,0.8646533]
[1719330484779,107.44472776,139.32,139.25,23.41]
[1719330485077,0.34,139.31,139.25,23.41]
[1719330486493,0.17,139.31,139.28,23.41]
[1719330486774,15.4381,139.33,139.28,23.41]
[1719330486978,115.4381,139.33,139.28,23.41]
[1719330487275,15.4381,139.33,139.28,23.41]
[1719330487576,15.8634,139.37,139.31,23.41]
[1719330487776,115.8634,139.4,139.35,23.41]
[1719330487985,123.30734232,139.4,139.35,23.41]
[1719330488303,23.30734232,139.4,139.35,23.41]
[1719330489865,123.30734232,139.4,139.31,15.6377]
[1719330490067,123.30734232,139.4,139.34,23.41]
[1719330490286,0.34,139.39,139.34,23.41]
[1719330493876,0.34,139.39,139.3,23.41]
[1719330494886,100.0,139.36,139.26,16.2266]
[1719330495076,0.17,139.35,139.28,23.41]
[1719330495262,0.34,139.35,139.28,23.41]
[1719330495658,0.17,139.34,139.28,23.41]
[1719330495958,100.0,139.39,139.28,23.41]
[1719330496180,0.17,139.38,139.31,23.41]
[1719330496567,100.0,139.36,139.31,23.41]
[1719330496779,100.0,139.36,139.28,23.41]
[1719330496972,15.2346,139.34,139.28,23.41]
[1719330497282,0.17,139.33,139.28,23.41]
[1719330497495,0.34,139.33,139.28,23.41]
[1719330499682,15.2346,139.34,139.28,23.41]
[1719330499886,15.2346,139.34,139.29,1.43339805]
[1719330501073,6.1078,139.35,139.29,1.43339805]
[1719330501274,0.17,139.36,139.31,23.41]
[1719330501464,0.34,139.36,139.31,23.41]
[1719330502591,100.34,139.36,139.26,1.43339805]
[1719330502896,100.34,139.36,139.26,21.43339805]
[1719330503067,100.34,139.36,139.29,23.41]
[1719330504068,6.4665,139.33,139.23,16.4037]
[1719330504271,0.17,139.32,139.25,23.41]
[1719330504488,0.34,139.32,139.25,23.41]
[1719330507408,29.60766468,139.37,139.3,23.41]
[1719330507596,116.4698,139.4,139.33,23.41]
[1719330507898,16.4698,139.4,139.33,23.41]
[1719330508072,23.91308687,139.4,139.33,23.41]
[1719330508273,23.91308687,139.4,139.36,23.41]
[1719330511290,0.17,139.39,139.36,23.41]
[1719330511478,0.34,139.39,139.36,23.41]
[1719330512482,0.34,139.39,139.3,23.41]
[1719330512680,0.34,139.39,139.34,23.41]
[1719330512885,0.17,139.39,139.34,23.41]
[1719330513586,0.34,139.39,139.34,23.41]
[1719330514407,0.17,139.39,139.34,23.41]
[1719330517802,23.91308687,139.4,139.34,23.41]
[1719330518008,22.6901,139.44,139.37,23.41]
[1719330518205,16.4056,139.47,139.4,23.41]
[1719330518797,100.0,139.46,139.4,23.41]
[1719330519314,16.4056,139.47,139.4,23.41]
[1719330519815,0.17,139.46,139.4,23.41]
[1719330520108,0.17,139.46,139.37,23.41]
[1719330520411,100.17,139.46,139.37,23.41]
[1719330520908,0.17,139.45,139.37,23.41]
[1719330521312,100.0,139.44,139.37,23.41]
[1719330521519,0.17,139.43,139.37,23.41]
[1719330521693,0.34,139.43,139.37,23.41]
[1719330522492,100.0,139.42,139.34,23.41]
[1719330522692,22.304,139.41,139.34,23.41]
[1719330525186,16.304,139.41,139.34,23.41]
[1719330529710,16.304,139.41,139.31,23.41]
[1719330529917,100.0,139.39,139.31,23.41]
[1719330530091,0.34,139.38,139.31,23.41]
[1719330530990,100.0,139.37,139.31,23.41]
[1719330531214,0.34,139.36,139.31,23.41]
[1719330532792,100.0,139.35,139.25,15.3317]
[1719330533004,15.2981,139.34,139.28,23.41]
[1719330533314,15.4681,139.34,139.28,23.41]
[1719330533510,15.2981,139.34,139.28,23.41]
[1719330534395,16.1062,139.37,139.28,23.41]
[1719330534597,0.17,139.36,139.28,23.41]
[1719330535718,0.34,139.36,139.28,23.41]
[1719330537403,100.0,139.35,139.28,23.41]
[1719330537714,0.34,139.34,139.28,23.41]
[1719330539120,100.0,139.32,139.21,17.4651533]
[1719330539328,0.17,139.31,139.24,23.41]
[1719330539796,0.34,139.32,139.24,23.41]
[1719330540219,100.34,139.32,139.24,23.41]
[1719330541124,100.34,139.32,139.22,20.0]
[1719330541309,100.34,139.32,139.24,23.41]
[1719330542609,0.17,139.32,139.24,23.41]
[1719330542815,6.5032,139.33,139.27,23.41]
[1719330543217,6.351,139.36,139.3,23.41]
[1719330544700,16.1062,139.37,139.3,23.41]
[1719330546333,100.34,139.36,139.28,23.41]
[1719330547502,100.0,139.32,139.17,22.9679]
[1719330547703,0.17,139.31,139.23,23.41]
[1719330547905,16.3166,139.34,139.26,23.41]
[1719330548121,0.34,139.33,139.26,23.41]
[1719330548910,0.17,139.33,139.26,23.41]
[1719330550124,16.3166,139.34,139.26,23.41]
[1719330550426,17.9318,139.42,139.23,46.3749]
[1719330550427,22.5513,139.38,139.29,23.41]
[1719330550629,22.5513,139.38,139.32,23.41]
[1719330551513,16.2301,139.38,139.32,23.41]
[1719330551940,21.1751,139.42,139.32,23.41]
[1719330553227,0.34,139.41,139.32,23.41]
[1719330553946,7.5133,139.41,139.3,6.2866]
[1719330554235,107.1741,139.39,139.31,23.41]
[1719330554427,107.1752,139.37,139.31,23.41]
[1719330554626,100.0,139.35,139.26,15.7366]
[1719330554828,0.17,139.34,139.26,39.1466]
[1719330555348,0.34,139.35,139.26,39.1466]
[1719330560239,100.0,139.34,139.26,39.1466]
[1719330560448,0.17,139.33,139.23,16.5179]
[1719330560627,0.17,139.35,139.28,23.41]
[1719330560948,22.8562,139.36,139.28,23.41]
[1719330561474,16.3212,139.36,139.28,23.41]
[1719330561820,16.3212,139.36,139.31,23.41]
[1719330562449,0.17,139.35,139.28,23.41]
[1719330563141,0.34,139.35,139.28,23.41]
[1719330563841,0.17,139.35,139.28,23.41]
[1719330564143,16.3212,139.36,139.28,23.41]
[1719330567441,0.17,139.35,139.28,23.41]
[1719330567641,0.34,139.35,139.28,23.41]
[1719330568851,0.17,139.35,139.28,23.41]
[1719330569054,16.3212,139.36,139.28,23.41]
[1719330570231,16.3212,139.36,139.31,23.41]
[1719330570544,21.9556,139.39,139.31,23.41]
[1719330570859,0.17,139.38,139.31,23.41]
[1719330571230,21.9556,139.39,139.31,23.41]
[1719330571433,21.9556,139.39,139.34,23.41]
[1719330572531,21.9556,139.39,139.31,23.41]
[1719330572766,0.17,139.38,139.31,23.41]
[1719330573356,0.34,139.38,139.31,23.41]
[1719330573733,0.17,139.38,139.31,23.41]
[1719330574259,0.34,139.38,139.31,23.41]
[1719330576040,0.17,139.38,139.31,23.41]
[1719330576238,21.9556,139.39,139.31,23.41]
[1719330577054,21.9556,139.39,139.3,23.41]
[1719330578353,15.3408,139.39,139.31,20.17]
[1719330578554,15.3408,139.39,139.34,23.41]
[1719330578846,6.5681,139.42,139.37,23.41]
[1719330579054,6.5681,139.46,139.4,23.41]
[1719330579240,6.5681,139.46,139.41,1.43327246]
[1719330580135,6.5681,139.46,139.34,6.1382]
[1719330580340,6.5681,139.46,139.4,23.41]
[1719330581654,0.17,139.45,139.37,23.41]
[1719330581867,0.34,139.45,139.37,23.41]
[1719330582658,100.34,139.45,139.35,1.66003086]
[1719330582850,100.34,139.45,139.36,23.41]
[1719330583253,0.34,139.45,139.36,23.41]
[1719330584783,0.34,139.45,139.35,1.66003086]
[1719330584949,100.34,139.45,139.35,1.66003086]
[1719330585156,100.34,139.45,139.35,25.07003086]
[1719330585553,100.0,139.43,139.35,25.07003086]
[1719330585778,0.17,139.42,139.35,25.07003086]
[1719330585947,0.34,139.42,139.35,25.07003086]
[1719330587280,16.2374,139.44,139.35,25.07003086]
[1719330587982,16.2374,139.44,139.4,40.465101]
[1719330588692,0.17,139.43,139.4,40.465101]
[1719330591684,0.34,139.43,139.4,40.465101]
[1719330596487,100.0,139.42,139.4,40.465101]
[1719330596678,6.791,139.41,139.4,23.798501]
[1719330599885,23.3668,139.41,139.4,7.131901]
[1719330600102,100.0,139.4,139.28,15.1412]
[1719330600286,0.17,139.39,139.3,23.41]
[1719330600481,100.0,139.38,139.29,1.30794823]
[1719330600796,0.17,139.37,139.29,1.30794823]
[1719330600971,0.34,139.37,139.29,1.30794823]
[1719330602173,0.34,139.37,139.29,46.30794823]
[1719330602384,100.0,139.36,139.28,15.1412]
[1719330602582,22.878,139.35,139.26,23.41]
[1719330602783,23.048,139.35,139.26,23.41]
[1719330603575,23.048,139.35,139.25,23.41]
[1719330604382,100.0,139.34,139.25,23.41]
[1719330604580,0.17,139.33,139.25,23.41]
[1719330604790,0.34,139.33,139.25,23.41]
[1719330605798,0.34,139.33,139.26,1.43293362]
[1719330606001,0.17,139.34,139.26,1.43293362]
[1719330606185,0.34,139.34,139.26,1.43293362]
[1719330606387,0.34,139.34,139.26,46.43293362]
[1719330607591,0.34,139.34,139.26,45.0]
[1719330608783,22.708,139.35,139.28,23.41]
[1719330609003,22.708,139.35,139.29,45.0]
[1719330610001,6.2846,139.35,139.29,45.0]
[1719330611305,22.5353,139.38,139.29,45.0]
[1719330612486,31.48897974,139.42,139.31,23.41]
[1719330612698,22.5827,139.42,139.34,23.41]
[1719330617509,0.17,139.41,139.34,23.41]
[1719330617802,0.17,139.41,139.33,16.1145]
[1719330618008,0.17,139.41,139.34,23.41]
[1719330618711,0.34,139.41,139.34,23.41]
[1719330619386,22.5827,139.42,139.34,23.41]
[1719330619604,22.5827,139.42,139.37,23.41]
[1719330620694,22.5827,139.42,139.34,23.41]
[1719330621813,0.17,139.41,139.34,23.41]
[1719330622292,0.17,139.41,139.29,15.1304]
[1719330622293,0.34,139.41,139.29,15.1304]
[1719330622495,0.34,139.41,139.3,20.0]
[1719330622811,0.34,139.41,139.29,16.79114593]
[1719330622812,100.0,139.4,139.29,16.79114593]
[1719330623008,0.17,139.39,139.3,23.41]
[1719330623192,0.34,139.39,139.3,23.41]
[1719330623584,0.34,139.39,139.29,16.79114593]
[1719330623585,22.4304,139.38,139.29,1.66074593]
[1719330623787,22.4304,139.38,139.29,25.07074593]
[1719330624096,0.34,139.37,139.29,1.66074593]
[1719330625331,22.4304,139.38,139.31,23.41]
[1719330626437,22.4304,139.38,139.34,23.41]
[1719330626609,22.4304,139.38,139.3,0.17]
[1719330626925,22.4304,139.38,139.32,23.41]
[1719330627311,108.90627974,139.44,139.32,23.41]
[1719330627536,22.5781,139.41,139.32,23.41]
[1719330627708,0.17,139.4,139.32,23.41]
[1719330629337,0.17,139.4,139.31,23.41]
[1719330629810,0.34,139.4,139.31,23.41]
[1719330630537,0.34,139.4,139.27,20.0]
[1719330630538,16.0428,139.37,139.28,23.41]
[1719330630906,0.34,139.36,139.28,23.41]
[1719330632409,16.0428,139.37,139.28,23.41]
[1719330633242,0.17,139.36,139.28,23.41]
[1719330634438,16.0428,139.37,139.28,23.41]
[1719330634758,16.0428,139.37,139.31,23.41]
[1719330636147,16.07787974,139.44,139.31,17.1047075]
[1719330636148,15.7242,139.41,139.31,17.1047075]
[1719330636355,15.7242,139.41,139.34,23.41]
[1719330641546,15.7242,139.41,139.31,17.1047075]
[1719330641749,0.34,139.4,139.31,1.6605075]
[1719330644156,0.34,139.4,139.3,23.41]
[1719330646988,15.2204,139.38,139.3,23.41]
[1719330647163,0.17,139.37,139.3,23.41]
[1719330648684,0.34,139.37,139.3,23.41]
[1719330649768,6.6134,139.36,139.23,15.2319]
[1719330649966,0.17,139.35,139.25,23.41]
[1719330650163,0.34,139.35,139.25,23.41]
[1719330650364,15.8188,139.34,139.25,23.41]
[1719330664263,6.0214,139.33,139.25,23.41]
[1719330664464,6.1914,139.33,139.19,21.57]
[1719330664765,0.17,139.32,139.21,2.52635361]
[1719330665067,0.17,139.32,139.23,23.41]
[1719330666868,6.0214,139.33,139.23,23.41]
[1719330667070,6.0214,139.33,139.26,23.41]
[1719330670694,6.0214,139.33,139.24,23.58]
[1719330671282,6.0214,139.33,139.24,23.41]
[1719330671484,6.0214,139.33,139.21,2.52635361]
[1719330671672,0.34,139.32,139.23,23.41]
[1719330672974,15.0721,139.31,139.23,23.41]
[1719330673172,6.2499,139.29,139.23,23.41]
[1719330673386,6.2499,139.29,139.21,2.52635361]
[1719330673877,15.2421,139.28,139.21,2.52635361]
[1719330674193,0.17,139.27,139.21,0.8646533]
[1719330676291,6.4128,139.26,139.21,0.8646533]
[1719330676481,0.17,139.25,139.21,0.8646533]
[1719330676675,6.4128,139.26,139.21,0.8646533]
[1719330676876,0.17,139.25,139.21,0.8646533]
[1719330677076,0.34,139.25,139.21,0.8646533]
[1719330677488,6.4128,139.26,139.21,0.8646533]
[1719330681306,0.17,139.25,139.21,0.8646533]
[1719330682285,0.34,139.25,139.21,0.8646533]
[1719330682587,6.2405,139.39,139.23,93.39]
[1719330682781,6.2405,139.39,139.33,23.41]